fUSD/lending_fUSD_20250911
["ID","MTS","AMOUNT","RATE_DAILY","PERIOD"]
[384943237,1757629881555,-703.79,0.00027945,7]
[384943238,1757629881564,-400.0,0.00027945,7]
[384943239,1757629881573,-1156.72,0.00027945,7]
[384943240,1757629881583,-1441.26,0.00027945,7]
[384943241,1757629881593,-766.67,0.00027945,7]
[384943242,1757629881602,-400.0,0.00027945,7]
[384943243,1757629881612,-400.0,0.00027945,7]
[384943244,1757629881621,-400.0,0.00027945,7]
[384943245,1757629881633,-1075.0,0.00027945,7]
[384943246,1757629881642,-400.0,0.00027945,7]
[384943247,1757629881652,-400.0,0.00027945,7]
[384943248,1757629881662,-400.0,0.00027945,7]
[384943249,1757629881672,-412.63,0.00027945,7]
[384943250,1757629881681,-1135.57,0.00027945,7]
[384943251,1757629882006,-400.0,0.00027945,7]
[384943252,1757629882023,-415.9801901,0.00027945,7]
[384943253,1757629882033,-400.0,0.00027945,7]
[384943254,1757629882042,-708.41,0.00027945,7]
[384943255,1757629882051,-497.85,0.00027945,7]
[384943256,1757629882061,-585.39,0.00027945,7]
[384943257,1757629882070,-400.0,0.00027945,7]
[384943258,1757629882080,-434.32755377,0.00027945,7]
[384943259,1757629882089,-400.0,0.00027945,7]
[384943260,1757629882098,-529.67,0.00027945,7]
[384943261,1757629882107,-972.93,0.00027945,7]
[384943262,1757629882117,-436.17,0.00027945,7]
[384943263,1757629882128,-151.0,0.00027945,7]
[384943264,1757629882138,-621.55,0.00027945,7]
[384943265,1757629882147,-151.0,0.00027945,7]
[384943266,1757629882156,-400.0,0.00027945,7]
[384943267,1757629882166,-422.96,0.00027945,7]
[384943268,1757629882175,-400.0,0.00027945,7]
[384943269,1757629882184,-400.0,0.00027945,7]
[384943270,1757629882193,-1083.62,0.00027945,7]
[384943271,1757629882202,-812.86,0.00027945,7]
[384943272,1757629882212,-765.3,0.00027945,7]
[384943273,1757629882221,-400.0,0.00027945,7]
[384943274,1757629882230,-863.97,0.00027945,7]
[384943275,1757629882239,-151.0,0.00027945,7]
[384943276,1757629882249,-151.0,0.00027945,7]
[384943277,1757629882258,-400.0,0.00027945,7]
[384943278,1757629882267,-400.0,0.00027945,7]
[384943279,1757629882276,-1718.95,0.00027945,7]
[384943280,1757629882286,-1177.07,0.00027945,7]
[384943281,1757629882298,-151.0,0.00027945,7]
[384943282,1757629882307,-151.0,0.00027945,7]
[384943283,1757629882316,-400.0,0.00027945,7]
[384943284,1757629882325,-270.958572,0.00027945,7]
[384943285,1757629882335,-991.27,0.00027945,7]
[384943286,1757629882345,-998.7,0.00027945,7]
[384943287,1757629882355,-151.0,0.00027945,7]
[384943288,1757629882364,-151.0,0.00027945,7]
[384943289,1757629882375,-986.16,0.00027945,7]
[384943290,1757629882384,-270.958572,0.00027945,7]
[384943291,1757629882394,-270.958572,0.00027945,7]
[384943292,1757629882403,-151.0,0.00027945,7]
[384943293,1757629882412,-151.0,0.00027945,7]
[384943294,1757629882422,-400.0,0.00027945,7]
[384943295,1757629882431,-429.34,0.00027945,7]
[384943296,1757629882440,-270.958572,0.00027945,7]
[384943297,1757629882450,-1410.34,0.00027945,7]
[384943298,1757629882460,-151.0,0.00027945,7]
[384943299,1757629882470,-174.916608,0.00027945,7]
[384943300,1757629882479,-400.0,0.00027945,7]
[384943301,1757629882488,-1311.0,0.00027945,7]
[384943302,1757629882498,-151.0,0.00027945,7]
[384943303,1757629882508,-1167.0,0.00027945,7]
[384943304,1757629882517,-237.445398,0.00027945,7]
[384943305,1757629882527,-881.03,0.00027945,7]
[384943306,1757629882537,-513.69,0.00027945,7]
[384943307,1757629882548,-237.445398,0.00027945,7]
[384943308,1757629882560,-400.0,0.00027945,7]
[384943309,1757629882570,-151.0,0.00027945,7]
[384943310,1757629882579,-151.0,0.00027945,7]
[384943311,1757629882588,-237.445398,0.00027945,7]
[384943312,1757629882598,-237.445398,0.00027945,7]
[384943313,1757629882608,-1237.08,0.00027945,7]
[384943314,1757629882617,-151.0,0.00027945,7]
[384943315,1757629882628,-443.54,0.00027945,7]
[384943316,1757629882637,-151.0,0.00027945,7]
[384943317,1757629882647,-237.445398,0.00027945,7]
[384943318,1757629882657,-237.445398,0.00027945,7]
[384943319,1757629882667,-237.445398,0.00027945,7]
[384943320,1757629882676,-237.445398,0.00027945,7]
[384943321,1757629882686,-1042.31,0.00027945,7]
[384943322,1757629882695,-400.0,0.00027945,7]
[384943323,1757629882705,-151.0,0.00027945,7]
[384943324,1757629882715,-400.0,0.00027945,7]
[384943325,1757629882724,-445.48,0.00027945,7]
[384943326,1757629882733,-151.0,0.00027945,7]
[384943327,1757629882743,-400.0,0.00027945,7]
[384943328,1757629882752,-151.0,0.00027945,7]
[384943329,1757629882761,-400.0,0.00027945,7]
[384943330,1757629882771,-1424.55,0.00027945,7]
[384943331,1757629882780,-400.0,0.00027945,7]
[384943332,1757629882790,-400.0,0.00027945,7]
[384943333,1757629882799,-976.72,0.00027945,7]
[384943334,1757629882808,-1088.28,0.00027945,7]
[384943335,1757629882817,-1120.01,0.00027945,7]
[384943336,1757629882826,-191.615604,0.00027945,7]
[384943337,1757629882835,-763.15,0.00027945,7]
[384943338,1757629882845,-400.0,0.00027945,7]
[384943339,1757629882854,-512.64,0.00027945,7]
[384943340,1757629882864,-400.0,0.00027945,7]
[384943341,1757629882874,-400.0,0.00027945,7]
[384943342,1757629882883,-400.0,0.00027945,7]
[384943343,1757629882893,-400.0,0.00027945,7]
[384943344,1757629882903,-1068.32,0.00027945,7]
[384943345,1757629882912,-400.0,0.00027945,7]
[384943346,1757629882922,-532.99,0.00027945,7]
[384943347,1757629882931,-1408.08,0.00027945,7]
[384943348,1757629882940,-2032.46,0.00027945,7]
[384943349,1757629882949,-783.06,0.00027945,7]
[384943350,1757629882959,-1599.9,0.00027945,7]
[384943351,1757629882967,-400.0,0.00027945,7]
[384943352,1757629882977,-400.0,0.00027945,7]
[384943353,1757629882987,-559.21,0.00027945,7]
[384943354,1757629882996,-400.0,0.00027945,7]
[384943355,1757629883005,-658.77,0.00027945,7]
[384943356,1757629883014,-400.0,0.00027945,7]
[384943357,1757629883023,-400.0,0.00027945,7]
[384943358,1757629883033,-794.92,0.00027945,7]
[384943359,1757629883043,-400.0,0.00027945,7]
[384943360,1757629883052,-151.0,0.00027945,7]
[384943361,1757629883062,-1240.2,0.00027945,7]
[384943362,1757629883071,-400.0,0.00027945,7]
[384943363,1757629883081,-633.59,0.00027945,7]
[384943364,1757629883090,-151.0,0.00027945,7]
[384943365,1757629883099,-400.0,0.00027945,7]
[384943366,1757629883109,-400.0,0.00027945,7]
[384943367,1757629883119,-813.83,0.00027945,7]
[384943368,1757629883128,-400.0,0.00027945,7]
[384943369,1757629883138,-975.97,0.00027945,7]
[384943370,1757629883148,-593.34,0.00027945,7]
[384943371,1757629883157,-1420.41,0.00027945,7]
[384943372,1757629883166,-151.0,0.00027945,7]
[384943373,1757629883176,-593.68,0.00027945,7]
[384943374,1757629883185,-1044.39,0.00027945,7]
[384943375,1757629883194,-400.0,0.00027945,7]
[384943376,1757629883204,-190.62349359,0.00027945,7]
[384943377,1757629883213,-400.0,0.00027945,7]
[384943378,1757629883223,-401.90255813,0.00027945,7]
[384943379,1757629883232,-400.0,0.00027945,7]
[384943380,1757629883242,-151.0,0.00027945,7]
[384943381,1757629883251,-400.0,0.00027945,7]
[384943382,1757629883261,-400.0,0.00027945,7]
[384943383,1757629883272,-151.0,0.00027945,7]
[384943384,1757629883281,-400.0,0.00027945,7]
[384943385,1757629883292,-637.44,0.00027945,7]
[384943386,1757629883303,-1080.32,0.00027945,7]
[384943387,1757629883313,-1211.94,0.00027945,7]
[384943388,1757629883322,-151.0,0.00027945,7]
[384943389,1757629883331,-400.0,0.00027945,7]
[384943390,1757629883342,-400.0,0.00027945,7]
[384943391,1757629883352,-400.0,0.00027945,7]
[384943392,1757629883362,-400.0,0.00027945,7]
[384943393,1757629883373,-1216.04,0.00027945,7]
[384943394,1757629883384,-164.927789,0.00027945,7]
[384943395,1757629883394,-1116.76,0.00027945,7]
[384943396,1757629883403,-164.927789,0.00027945,7]
[384943397,1757629883413,-456.94,0.00027945,7]
[384943398,1757629883422,-712.33,0.00027945,7]
[384943399,1757629883431,-400.0,0.00027945,7]
[384943400,1757629883441,-1190.6,0.00027945,7]
[384943401,1757629883451,-1339.3,0.00027945,7]
[384943402,1757629883460,-164.927789,0.00027945,7]
[384943403,1757629883470,-758.67,0.00027945,7]
[384943404,1757629883479,-151.0,0.00027945,7]
[384943405,1757629883488,-1713.86,0.00027945,7]
[384943406,1757629883497,-164.927789,0.00027945,7]
[384943407,1757629883507,-1510.14,0.00027945,7]
[384943408,1757629883518,-400.0,0.00027945,7]
[384943409,1757629883527,-958.78,0.00027945,7]
[384943410,1757629883537,-400.0,0.00027945,7]
[384943411,1757629883546,-437.021515,0.00027945,7]
[384943412,1757629883557,-599.779935,0.00027945,7]
[384943413,1757629883567,-400.0,0.00027945,7]
[384943414,1757629883577,-506.96,0.00027945,7]
[384943415,1757629883586,-437.021515,0.00027945,7]
[384943416,1757629883595,-599.779935,0.00027945,7]
[384943417,1757629883605,-400.0,0.00027945,7]
[384943418,1757629883614,-437.021515,0.00027945,7]
[384943419,1757629883624,-400.0,0.00027945,7]
[384943420,1757629883634,-599.779935,0.00027945,7]
[384943421,1757629883643,-400.0,0.00027945,7]
[384943422,1757629883652,-400.0,0.00027945,7]
[384943423,1757629883662,-437.021515,0.00027945,7]
[384943424,1757629883671,-599.779935,0.00027945,7]
[384943425,1757629883681,-1161.36,0.00027945,7]
[384943426,1757629883690,-400.0,0.00027945,7]
[384943427,1757629883700,-763.82,0.00027945,7]
[384943428,1757629883711,-427.27,0.00027945,7]
[384943429,1757629883722,-417.41,0.00027945,7]
[384943430,1757629883732,-151.0,0.00027945,7]
[384943431,1757629883742,-400.0,0.00027945,7]
[384943432,1757629883751,-961.23,0.00027945,7]
[384943433,1757629883762,-400.0,0.00027945,7]
[384943434,1757629883772,-400.0,0.00027945,7]
[384943435,1757629883781,-1007.92,0.00027945,7]
[384943436,1757629883791,-151.0,0.00027945,7]
[384943437,1757629883801,-151.0,0.00027945,7]
[384943438,1757629883810,-412.43,0.00027945,7]
[384943439,1757629883824,-567.91,0.00027945,7]
[384943440,1757629883835,-180.55825,0.00027945,7]
[384943441,1757629883844,-180.55825,0.00027945,7]
[384943442,1757629883854,-400.0,0.00027945,7]
[384943443,1757629883863,-151.0,0.00027945,7]
[384943444,1757629883873,-1382.83,0.00027945,7]
[384943445,1757629883883,-180.55825,0.00027945,7]
[384943446,1757629883894,-1177.99,0.00027945,7]
[384943447,1757629883903,-180.55825,0.00027945,7]
[384943448,1757629883913,-956.02,0.00027945,7]
[384943449,1757629883922,-1391.95,0.00027945,7]
[384943450,1757629883932,-1038.23,0.00027945,7]
[384943451,1757629883941,-400.0,0.00027945,7]
[384943452,1757629883951,-400.0,0.00027945,7]
[384943453,1757629883960,-1369.21,0.00027945,7]
[384943454,1757629883969,-895.22,0.00027945,7]
[384943455,1757629883979,-400.0,0.00027945,7]
[384943456,1757629883989,-293.41088,0.00027945,7]
[384943457,1757629883998,-759.19,0.00027945,7]
[384943458,1757629884008,-151.0,0.00027945,7]
[384943459,1757629884017,-793.369091,0.00027945,7]
[384943460,1757629884026,-1379.45,0.00027945,7]
[384943461,1757629884036,-400.0,0.00027945,7]
[384943462,1757629884045,-293.41088,0.00027945,7]
[384943463,1757629884054,-793.369091,0.00027945,7]
[384943464,1757629884064,-151.0,0.00027945,7]
[384943465,1757629884073,-293.41088,0.00027945,7]
[384943466,1757629884082,-678.27,0.00027945,7]
[384943467,1757629884091,-276.25185,0.00027945,7]
[384943468,1757629884101,-185.584307,0.00027945,7]
[384943469,1757629884111,-1372.61,0.00027945,7]
[384943470,1757629884122,-151.0,0.00027945,7]
[384943471,1757629884132,-293.41088,0.00027945,7]
[384943472,1757629884141,-793.369091,0.00027945,7]
[384943473,1757629884151,-151.0,0.00027945,7]
[384943474,1757629884161,-276.25185,0.00027945,7]
[384943475,1757629884172,-158.085363,0.00027945,7]
[384943476,1757629884181,-185.584307,0.00027945,7]
[384943477,1757629884191,-151.0,0.00027945,7]
[384943478,1757629884200,-793.369091,0.00027945,7]
[384943479,1757629884209,-151.0,0.00027945,7]
[384943480,1757629884220,-400.0,0.00027945,7]
[384943481,1757629884230,-276.25185,0.00027945,7]
[384943482,1757629884239,-1500.51,0.00027945,7]
[384943483,1757629884249,-817.86,0.00027945,7]
[384943484,1757629884258,-1225.404666,0.00027945,7]
[384943485,1757629884268,-185.584307,0.00027945,7]
[384943486,1757629884277,-151.0,0.00027945,7]
[384943487,1757629884287,-151.0,0.00027945,7]
[384943488,1757629884300,-276.25185,0.00027945,7]
[384943489,1757629884310,-378.98087416,0.00027945,7]
[384943490,1757629884477,-1150.57,0.00027945,7]
[384943491,1757629884487,-185.584307,0.00027945,7]
[384943492,1757629884496,-196.042271,0.00027945,7]
[384943493,1757629884505,-1225.404666,0.00027945,7]
[384943494,1757629884514,-2153.09,0.00027945,7]
[384943495,1757629884523,-400.0,0.00027945,7]
[384943496,1757629884532,-400.0,0.00027945,7]
[384943497,1757629884542,-452.79919266,0.00027945,7]
[384943498,1757629885391,-395.47044682,0.00027945,7]
[384943499,1757629885403,-210.68036052,0.00027945,7]
[384943500,1757629885412,-1225.404666,0.00027945,7]
[384943501,1757629885422,-647.2,0.00027945,7]
[384943502,1757629885431,-151.0,0.00027945,7]
[384943503,1757629885440,-154.901232,0.00027945,7]
[384943504,1757629885449,-400.0,0.00027945,7]
[384943505,1757629885459,-1225.404666,0.00027945,7]
[384943506,1757629885468,-188.726116,0.00027945,7]
[384943507,1757629885477,-151.0,0.00027945,7]
[384943508,1757629885487,-1181.46,0.00027945,7]
[384943509,1757629885496,-1017.32,0.00027945,7]
[384943510,1757629885505,-400.0,0.00027945,7]
[384943511,1757629885514,-151.0,0.00027945,7]
[384943512,1757629885523,-558.42,0.00027945,7]
[384943513,1757629885532,-400.0,0.00027945,7]
[384943514,1757629885542,-1773.73997,0.00027945,7]
[384943515,1757629885552,-3676.220185,0.00027945,7]
[384943516,1757629885561,-1773.73997,0.00027945,7]
[384943517,1757629885571,-1311.46,0.00027945,7]
[384943518,1757629885580,-3676.220185,0.00027945,7]
[384943519,1757629885590,-400.0,0.00027945,7]
[384943520,1757629885599,-400.0,0.00027945,7]
[384943521,1757629885609,-1773.73997,0.00027945,7]
[384943522,1757629885618,-400.0,0.00027945,7]
[384943523,1757629885627,-3676.220185,0.00027945,7]
[384943524,1757629885636,-400.0,0.00027945,7]
[384943525,1757629885646,-400.0,0.00027945,7]
[384943526,1757629885655,-1773.73997,0.00027945,7]
[384943527,1757629885664,-3676.220185,0.00027945,7]
[384943528,1757629885673,-151.0,0.00027945,7]
[384943529,1757629885682,-400.0,0.00027945,7]
[384943530,1757629885692,-151.0,0.00027945,7]
[384943531,1757629885702,-151.0,0.00027945,7]
[384943532,1757629885711,-1460.53,0.00027945,7]
[384943533,1757629885720,-400.0,0.00027945,7]
[384943534,1757629885730,-972.49,0.00027945,7]
[384943535,1757629885739,-1012.01,0.00027945,7]
[384943536,1757629885748,-1579.32,0.00027945,7]
[384943537,1757629885758,-495.14,0.00027945,7]
[384943538,1757629885767,-879.55,0.00027945,7]
[384943539,1757629885776,-739.96,0.00027945,7]
[384943540,1757629885785,-2386.39,0.00027945,7]
[384943541,1757629885795,-526.83,0.00027945,7]
[384943542,1757629885804,-604.51,0.00027945,7]
[384943543,1757629885814,-1113.84,0.00027945,7]
[384943544,1757629885823,-1602.15,0.00027945,7]
[384943545,1757629885833,-909.55,0.00027945,7]
[384943546,1757629885843,-400.0,0.00027945,7]
[384943547,1757629885852,-400.0,0.00027945,7]
[384943548,1757629885861,-1244.01,0.00027945,7]
[384943549,1757629885870,-400.0,0.00027945,7]
[384943550,1757629885879,-1188.64,0.00027945,7]
[384943551,1757629885889,-1097.38,0.00027945,7]
[384943552,1757629885898,-2113.75,0.00027945,7]
[384943553,1757629885907,-477.1,0.00027945,7]
[384943554,1757629885917,-1211.35,0.00027945,7]
[384943555,1757629885926,-151.0,0.00027945,7]
[384943556,1757629885935,-1271.43,0.00027945,7]
[384943557,1757629885944,-1206.01,0.00027945,7]
[384943558,1757629885954,-461.77,0.00027945,7]
[384943559,1757629885963,-957.5,0.00027945,7]
[384943560,1757629885973,-155.04364982,0.00027945,7]
[384943561,1757629885982,-458.66,0.00027945,7]
[384943562,1757629885991,-1089.06,0.00027945,7]
[384943563,1757629886000,-181.779338,0.00027945,7]
[384943564,1757629886009,-300.0,0.00027945,7]
[384943565,1757629886019,-2056.95,0.00027945,7]
[384943566,1757629886028,-181.779338,0.00027945,7]
[384943567,1757629886038,-408.14259803,0.00027945,7]
[384943568,1757629886047,-181.779338,0.00027945,7]
[384943569,1757629886057,-895.96,0.00027945,7]
[384943570,1757629886066,-400.0,0.00027945,7]
[384943571,1757629886075,-181.779338,0.00027945,7]
[384943572,1757629886084,-400.0,0.00027945,7]
[384943573,1757629886093,-450.17128299,0.00027945,2]
[384943574,1757629886103,-430.71,0.00027945,7]
[384943575,1757629886111,-964.83,0.00027945,7]
[384943576,1757629886120,-957.34,0.00027945,7]
[384943577,1757629886130,-2419.66,0.00027945,7]
[384943578,1757629886139,-403.41,0.00027945,7]
[384943579,1757629886148,-400.0,0.00027945,7]
[384943580,1757629886157,-3946.89,0.00027945,7]
[384943581,1757629886166,-1450.38,0.00027945,7]
[384943582,1757629886175,-151.0,0.00027945,7]
[384943583,1757629886183,-151.0,0.00027945,7]
[384943584,1757629886192,-400.0,0.00027945,7]
[384943585,1757629886201,-151.0,0.00027945,7]
[384943586,1757629886210,-151.0,0.00027945,7]
[384943587,1757629886219,-151.0,0.00027945,7]
[384943588,1757629886228,-151.0,0.00027945,7]
[384943589,1757629886238,-151.0,0.00027945,7]
[384943590,1757629886247,-400.0,0.00027945,7]
[384943591,1757629886256,-151.0,0.00027945,7]
[384943592,1757629886266,-151.0,0.00027945,7]
[384943593,1757629886275,-260.139577,0.00027945,7]
[384943594,1757629886284,-1593.12,0.00027945,7]
[384943595,1757629886296,-226.915992,0.00027945,7]
[384943596,1757629886305,-400.0,0.00027945,7]
[384943597,1757629886314,-400.0,0.00027945,7]
[384943598,1757629886323,-400.0,0.00027945,7]
[384943599,1757629886332,-400.0,0.00027945,7]
[384943600,1757629886341,-537.59,0.00027945,7]
[384943601,1757629886350,-400.0,0.00027945,7]
[384943602,1757629886359,-1201.29,0.00027945,7]
[384943603,1757629886369,-400.0,0.00027945,7]
[384943604,1757629886378,-151.0,0.00027945,7]
[384943605,1757629886388,-980.67,0.00027945,7]
[384943606,1757629886398,-400.0,0.00027945,7]
[384943607,1757629886407,-151.0,0.00027945,7]
[384943608,1757629886416,-151.0,0.00027945,7]
[384943609,1757629886425,-188.721269,0.00027945,7]
[384943610,1757629886435,-962.67,0.00027945,7]
[384943611,1757629886444,-2453.77,0.00027945,7]
[384943612,1757629886453,-1017.66,0.00027945,7]
[384943613,1757629886463,-870.24,0.00027945,7]
[384943614,1757629886472,-504.47,0.00027945,7]
[384943615,1757629886482,-1437.33,0.00027945,7]
[384943616,1757629886491,-400.0,0.00027945,7]
[384943617,1757629886500,-151.0,0.00027945,7]
[384943618,1757629886510,-151.0,0.00027945,7]
[384943619,1757629886520,-151.0,0.00027945,7]
[384943620,1757629886529,-151.0,0.00027945,7]
[384943621,1757629886538,-455.32,0.00027945,7]
[384943622,1757629886548,-151.0,0.00027945,7]
[384943623,1757629886558,-151.0,0.00027945,7]
[384943624,1757629886568,-3042.36,0.00027945,7]
[384943625,1757629886577,-1057.87,0.00027945,7]
[384943626,1757629886587,-151.0,0.00027945,7]
[384943627,1757629886596,-151.0,0.00027945,7]
[384943628,1757629886605,-1224.47,0.00027945,7]
[384943629,1757629886615,-3490.1,0.00027945,7]
[384943630,1757629886624,-193.882155,0.00027945,7]
[384943631,1757629886634,-413.91,0.00027945,7]
[384943632,1757629886643,-1302.25,0.00027945,7]
[384943633,1757629886652,-1448.71,0.00027945,7]
[384943634,1757629886662,-151.0,0.00027945,7]
[384943635,1757629886672,-1414.33,0.00027945,7]
[384943636,1757629886681,-151.0,0.00027945,7]
[384943637,1757629886691,-1048.48,0.00027945,7]
[384943638,1757629886700,-520.93,0.00027945,7]
[384943639,1757629886710,-645.02,0.00027945,7]
[384943640,1757629886719,-934.9,0.00027945,7]
[384943641,1757629886729,-400.0,0.00027945,7]
[384943642,1757629886739,-1070.6,0.00027945,7]
[384943643,1757629886748,-1426.5,0.00027945,7]
[384943644,1757629886758,-1407.96,0.00027945,7]
[384943645,1757629886767,-400.0,0.00027945,7]
[384943646,1757629886776,-400.0,0.00027945,7]
[384943647,1757629886786,-1338.29,0.00027945,7]
[384943648,1757629886796,-930.61,0.00027945,7]
[384943649,1757629886807,-400.0,0.00027945,7]
[384943650,1757629886816,-1525.54,0.00027945,7]
[384943651,1757629886827,-1165.78,0.00027945,7]
[384943652,1757629886836,-828.8,0.00027945,7]
[384943653,1757629886847,-883.38,0.00027945,7]
[384943654,1757629886857,-400.0,0.00027945,7]
[384943655,1757629886867,-698.71,0.00027945,7]
[384943656,1757629886877,-1553.98,0.00027945,7]
[384943657,1757629886887,-400.0,0.00027945,7]
[384943658,1757629886896,-400.0,0.00027945,7]
[384943659,1757629886906,-1424.21,0.00027945,7]
[384943660,1757629886916,-1124.47,0.00027945,7]
[384943661,1757629886925,-1271.07,0.00027945,7]
[384943662,1757629886935,-817.14,0.00027945,7]
[384943663,1757629886946,-400.0,0.00027945,7]
[384943664,1757629886956,-400.0,0.00027945,7]
[384943665,1757629886966,-1362.77,0.00027945,7]
[384943666,1757629886975,-2671.62,0.00027945,7]
[384943667,1757629886985,-696.38,0.00027945,7]
[384943668,1757629886994,-499.2,0.00027945,7]
[384943669,1757629887003,-1329.59,0.00027945,7]
[384943670,1757629887013,-400.0,0.00027945,7]
[384943671,1757629887022,-151.0,0.00027945,7]
[384943672,1757629887031,-400.0,0.00027945,7]
[384943673,1757629887041,-151.0,0.00027945,7]
[384943674,1757629887051,-151.0,0.00027945,7]
[384943675,1757629887060,-219.264474,0.00027945,7]
[384943676,1757629887070,-400.0,0.00027945,7]
[384943677,1757629887079,-1153.25,0.00027945,7]
[384943678,1757629887089,-518.97,0.00027945,7]
[384943679,1757629887102,-151.0,0.00027945,7]
[384943680,1757629887112,-1653.85,0.00027945,7]
[384943681,1757629887122,-227.957161,0.00027945,7]
[384943682,1757629887132,-1705.22,0.00027945,7]
[384943683,1757629887141,-278.575369,0.00027945,7]
[384943684,1757629887151,-1377.2,0.00027945,7]
[384943685,1757629887161,-1684.79,0.00027945,7]
[384943686,1757629887171,-400.0,0.00027945,7]
[384943687,1757629887181,-430.83,0.00027945,7]
[384943688,1757629887190,-2688.97,0.00027945,7]
[384943689,1757629887200,-1419.02,0.00027945,7]
[384943690,1757629887209,-400.0,0.00027945,7]
[384943691,1757629887219,-151.0,0.00027945,7]
[384943692,1757629887230,-4086.94,0.00027945,7]
[384943693,1757629887240,-151.0,0.00027945,7]
[384943694,1757629887250,-400.0,0.00027945,7]
[384943695,1757629887260,-151.0,0.00027945,7]
[384943696,1757629887270,-151.0,0.00027945,7]
[384943697,1757629887280,-1460.15,0.00027945,7]
[384943698,1757629887290,-1550.55,0.00027945,7]
[384943699,1757629887303,-1200.04,0.00027945,7]
[384943700,1757629887313,-1154.81,0.00027945,7]
[384943701,1757629887323,-1348.28,0.00027945,7]
[384943702,1757629887332,-1143.42,0.00027945,7]
[384943703,1757629887343,-400.0,0.00027945,7]
[384943704,1757629887352,-400.0,0.00027945,7]
[384943705,1757629887363,-1079.14,0.00027945,7]
[384943706,1757629887373,-400.0,0.00027945,7]
[384943707,1757629887383,-1378.13774754,0.00027945,7]
[384943708,1757629887405,-246.31225246,0.00027945,7]
[384943709,1757629887415,-151.0,0.00027945,7]
[384943710,1757629887425,-2711.7,0.00027945,7]
[384943711,1757629887435,-107.11833466,0.00027945,7]
[384943712,1757629888445,-184.11345196,0.0002499,2]
[384943713,1757629888455,-500.0,0.0002499,2]
[384943714,1757629888465,-500.0,0.0002499,2]
[384943715,1757629888475,-500.0,0.0002499,2]
[384943716,1757629888485,-500.0,0.0002499,2]
[384943717,1757629888495,-500.0,0.0002499,2]
[384943718,1757629888505,-500.0,0.0002499,2]
[384943719,1757629888514,-205.01655999,0.0002499,2]
[384943720,1757629889382,-294.98344001,0.0002499,2]
[384943721,1757629889392,-500.0,0.0002499,2]
[384943722,1757629889401,-500.0,0.0002499,2]
[384943723,1757629889411,-500.0,0.0002499,2]
[384943724,1757629889421,-500.0,0.0002499,2]
[384943725,1757629889430,-500.0,0.0002499,2]
[384943726,1757629889439,-500.0,0.0002499,2]
[384943727,1757629889450,-500.0,0.0002499,2]
[384943728,1757629889460,-500.0,0.0002499,2]
[384943729,1757629889470,-485.06088334,0.0002499,2]
[384943730,1757629889479,-500.0,0.0002499,2]
[384943731,1757629889488,-3882.79,0.00025247,2]
[384943732,1757629889498,-940.94,0.00027397,7]
[384943733,1757629889507,-910.54,0.00027397,7]
[384943734,1757629889517,-400.0,0.00027397,7]
[384943735,1757629889526,-668.809954,0.00027397,7]
[384943736,1757629889536,-400.0,0.00027397,7]